bitfinex/quotes_ETHUSD_20250415
["timestamp","ask_amount","ask_price","bid_price","bid_amount"]
[1744744345522,12.43806258,1608.0,1607.7,6.21995252]
[1744744346222,6.2193478,1607.9,1607.6,13.94157036]
[1744744347032,12.43884756,1607.9,1607.6,7.72118518]
[1744744347234,6.2193478,1607.9,1607.6,13.94153374]
[1744744347531,6.2193478,1607.9,1607.6,7.72114856]
[1744744347927,12.52454917,1608.1,1607.6,7.72113485]
[1744744347928,6.21898185,1608.0,1607.6,7.72113485]
[1744744348134,6.21936504,1607.9,1607.6,13.9414697]
[1744744348332,6.306,1608.1,1607.9,6.21929224]
[1744744348492,12.52452486,1608.1,1607.8,12.43908507]
[1744744348686,18.74323526,1608.1,1607.8,6.21952129]
[1744744348894,12.43832917,1608.0,1607.6,7.72097313]
[1744744349134,6.21907746,1608.0,1607.7,6.21987075]
[1744744349340,6.21907746,1608.0,1607.7,12.43982693]
[1744744349628,6.21907746,1608.0,1607.7,6.21987075]
[1744744349837,6.21863686,1608.1,1607.8,10.61574226]
[1744744350393,6.21863686,1608.1,1607.8,10.61573888]
[1744744350938,6.21863686,1608.1,1607.8,4.39617673]
[1744744350939,6.21908552,1608.0,1607.8,4.39617673]
[1744744351140,6.21906732,1608.0,1607.8,0.7775]
[1744744351309,6.21929224,1607.9,1607.6,20.03499963]
[1744744351707,13.25153451,1608.0,1607.7,6.22005933]
[1744744351922,13.2103282,1608.1,1607.8,6.2196742]
[1744744352235,14.60104791,1608.1,1607.8,6.2196742]
[1744744352437,6.21895443,1608.0,1607.7,16.0586886]
[1744744353817,6.21895443,1608.0,1607.8,6.21967611]
[1744744354247,6.21895443,1608.0,1607.7,9.83862927]
[1744744354725,0.7729,1608.1,1607.9,6.21928243]
[1744744354914,1.48567577,1608.2,1607.8,12.4390728]
[1744744355102,7.00590082,1608.2,1607.8,12.4390728]
[1744744355509,7.00590082,1608.2,1607.9,6.21926649]
[1744744355733,13.22431665,1608.2,1607.9,7.00646649]
[1744744356029,6.2185258,1608.1,1607.9,7.00646649]
[1744744356834,13.22437708,1608.2,1607.9,7.00646649]
[1744744357338,6.21853475,1608.1,1607.9,7.00646649]
[1744744357515,6.21853475,1608.1,1607.9,0.7872]
[1744744358036,7.00590082,1608.2,1607.9,7.00643445]
[1744744358346,6.21931578,1607.9,1607.7,0.8196]
[1744744358650,12.43809497,1608.0,1607.7,4.43827673]
[1744744358829,6.21903091,1608.0,1607.7,10.65817933]
[1744744359249,12.43813983,1608.0,1607.7,10.65817933]
[1744744359530,6.21903091,1608.0,1607.7,10.65817933]
[1744744360047,12.43806914,1608.0,1607.7,10.65817933]
[1744744360344,12.43820661,1608.0,1607.7,10.65830642]
[1744744360546,6.21967906,1607.8,1607.6,3.7]
[1744744360715,6.22006593,1607.7,1607.6,0.7]
[1744744361423,6.21967906,1607.8,1607.6,0.7]
[1744744361636,12.43814104,1608.0,1607.6,11.31312883]
[1744744361932,12.43814104,1608.0,1607.7,6.22002011]
[1744744362710,0.7609,1608.1,1607.6,5.09267673]
[1744744362910,13.19864541,1608.1,1607.8,6.21963971]
[1744744364441,13.19840697,1608.1,1607.8,6.21955863]
[1744744364738,0.7609,1608.1,1607.9,6.2190878]
[1744744364927,6.21823647,1608.2,1607.9,7.0460878]
[1744744365238,12.43654704,1608.2,1607.9,7.0460878]
[1744744365427,6.21957508,1607.9,1607.6,7.74733677]
[1744744365633,12.43982895,1607.8,1607.6,0.7]
[1744744365836,7.04276376,1607.8,1607.6,0.7]
[1744744366333,6.22006593,1607.7,1607.6,0.7]
[1744744367330,7.04274307,1607.8,1607.6,0.7]
[1744744367522,13.26257041,1607.8,1607.6,0.7]
[1744744368247,6.22006593,1607.7,1607.6,0.7]
[1744744373065,6.21891754,1608.0,1607.7,6.22005707]
[1744744373258,0.7976,1608.1,1607.8,16.05776813]
[1744744373454,6.21852236,1608.1,1607.8,9.83822243]
[1744744373658,6.21852236,1608.1,1607.8,16.05780471]
[1744744376371,11.07388582,1608.3,1607.8,3.61867673]
[1744744376676,6.2181629,1608.2,1607.9,6.21916646]
[1744744377043,6.2181629,1608.2,1608.0,0.8187]
[1744744377837,6.2181629,1608.2,1607.9,12.43834687]
[1744744379374,6.2181629,1608.2,1607.9,6.21916646]
[1744744380175,6.2181629,1608.2,1607.9,12.43834687]
[1744744380467,6.2181629,1608.2,1607.9,6.21916646]
[1744744380675,6.2181629,1608.2,1607.9,12.43836051]
[1744744381174,0.7668,1608.5,1608.3,6.21772003]
[1744744381477,0.7668,1608.5,1608.2,9.83663001]
[1744744381687,0.7668,1608.5,1608.3,6.21771869]
[1744744382040,0.7668,1608.5,1608.3,6.21764063]
[1744744382244,6.21669276,1608.6,1608.3,12.43527146]
[1744744382445,14.16422816,1608.6,1608.3,6.21762972]
[1744744382673,7.94748955,1608.6,1608.3,6.21762972]
[1744744382877,7.94748955,1608.6,1608.3,6.21762666]
[1744744383053,7.94748955,1608.6,1608.3,12.43526672]
[1744744383246,7.94743712,1608.6,1608.3,12.43526672]
[1744744383440,7.94743712,1608.6,1608.3,6.21762666]
[1744744383646,6.21698949,1608.5,1608.2,9.83669122]
[1744744383845,6.21698949,1608.5,1608.2,16.0547204]
[1744744384175,14.16415581,1608.6,1608.3,6.21772407]
[1744744384375,11.09127148,1608.7,1608.4,6.21700157]
[1744744384567,12.20039863,1608.7,1608.4,6.21700157]
[1744744384878,18.41689929,1608.7,1608.4,6.21700157]
[1744744385874,18.41689929,1608.7,1608.3,12.43537168]
[1744744385875,6.21667525,1608.6,1608.3,12.43537168]
[1744744386200,8.1420229,1608.7,1608.2,3.61867673]
[1744744386475,7.03289575,1608.7,1608.4,6.21725695]
[1744744386649,12.56343766,1608.9,1608.6,6.21658585]
[1744744386976,19.33129312,1608.9,1608.6,6.21658585]
[1744744387175,13.11553766,1608.9,1608.6,6.21658585]
[1744744387477,13.11553766,1608.9,1608.5,6.21677716]
[1744744387642,6.21615247,1608.8,1608.5,6.21693991]
[1744744387966,6.21615247,1608.8,1608.5,6.21686645]
[1744744388369,12.43212845,1608.8,1608.5,6.21686645]
[1744744388571,6.21597598,1608.8,1608.5,6.21686645]
[1744744388771,12.43196163,1608.8,1608.5,6.21686645]
[1744744388969,6.21597598,1608.8,1608.5,6.21685289]
[1744744389151,6.21597598,1608.8,1608.5,12.43370759]
[1744744389347,6.21597598,1608.8,1608.5,12.43370237]
[1744744389562,12.5633821,1608.9,1608.6,6.21644622]
[1744744389758,12.5633821,1608.9,1608.5,6.21684027]
[1744744389960,12.5633821,1608.9,1608.6,6.21648356]
[1744744390162,0.8269,1609.1,1608.8,6.21581302]
[1744744390369,6.21516901,1609.0,1608.7,6.21609144]
[1744744390572,12.43044118,1609.0,1608.7,6.21609144]
[1744744390771,0.8269,1609.1,1608.8,9.83418737]
[1744744391095,9.57937573,1609.2,1608.9,13.25306936]
[1744744391307,4.05837573,1609.2,1609.0,12.42981004]
[1744744391974,4.05837573,1609.2,1609.0,16.04848677]
[1744744392175,4.05837573,1609.2,1609.1,6.21465415]
[1744744392889,10.27188031,1609.4,1609.1,13.24066894]
[1744744393910,4.05837573,1609.4,1609.2,6.21425822]
[1744744394183,4.05837573,1609.4,1609.1,7.02601479]
[1744744394396,4.05837573,1609.4,1609.1,13.24054307]
[1744744394787,4.05837573,1609.4,1609.1,0.8115]
[1744744394975,6.2139878,1609.3,1609.1,0.8115]
[1744744395795,17.5216353,1609.4,1609.1,7.02610292]
[1744744397083,17.5216353,1609.4,1609.2,0.7]
[1744744397290,6.21388181,1609.3,1609.2,0.7]
[1744744399091,9.83079985,1609.8,1609.2,0.7]
[1744744399092,0.8072,1609.7,1609.2,8.73345346]
[1744744399264,6.2110167,1610.1,1609.8,6.21193394]
[1744744399466,13.12381623,1610.1,1609.8,3.61867673]
[1744744399661,0.8072,1610.2,1609.8,4.42667673]
[1744744399856,10.26861345,1610.3,1610.0,9.82972294]
[1744744399857,4.05837573,1610.3,1610.0,9.82972294]
[1744744400086,4.05837573,1610.3,1610.0,16.04077905]
[1744744400283,4.05837573,1610.3,1610.0,3.61867673]
[1744744400474,10.26848206,1610.3,1610.0,3.61867673]
[1744744401060,10.26848206,1610.3,1610.0,9.8298115]
[1744744401484,10.26848206,1610.3,1610.0,3.61867673]
[1744744401686,10.26848206,1610.3,1610.0,9.82973258]
[1744744402165,4.05837573,1610.3,1610.0,16.04078308]
[1744744402366,4.05837573,1610.3,1610.1,6.21071961]
[1744744402577,4.05837573,1610.3,1610.1,6.21067734]
[1744744402778,4.05837573,1610.3,1610.1,12.42136416]
[1744744402978,4.05837573,1610.3,1610.1,6.21067734]
[1744744403174,0.8431,1610.4,1610.1,12.42135133]
[1744744403491,0.8431,1610.4,1610.1,6.21067399]
[1744744403696,0.8431,1610.4,1610.0,9.82971003]
[1744744403697,13.262849,1610.4,1610.0,9.82971003]
[1744744403892,6.21018249,1610.3,1610.0,3.61867673]
[1744744404085,6.21045023,1610.2,1610.0,3.61867673]
[1744744404492,12.4205462,1610.3,1610.0,3.61867673]
[1744744404675,12.4205462,1610.3,1610.0,9.82984526]
[1744744405068,6.21018249,1610.3,1610.0,9.82984526]
[1744744405272,7.05276696,1610.4,1610.1,6.21065987]
[1744744405584,13.26266411,1610.4,1610.1,6.21065987]
[1744744406206,6.21019734,1610.3,1610.0,3.61867673]
[1744744406406,12.42041668,1610.3,1610.0,9.82984651]
[1744744406575,6.21019734,1610.3,1610.0,9.82984651]
[1744744407000,8.37910944,1610.4,1610.1,6.21074585]
[1744744407202,7.05284303,1610.4,1610.1,12.4214917]
[1744744407391,7.05284303,1610.4,1610.1,13.1902917]
[1744744407707,7.05284303,1610.4,1610.1,6.97954585]
[1744744407893,7.05284303,1610.4,1610.1,13.19023335]
[1744744408403,13.26262492,1610.4,1610.1,6.9794875]
[1744744408601,13.26269634,1610.4,1610.1,6.9794875]
[1744744408968,6.21004593,1610.3,1610.1,0.7688]
[1744744409414,13.26284863,1610.4,1610.1,6.97955935]
[1744744409619,7.05284303,1610.4,1610.1,6.97955935]
[1744744409988,13.26265499,1610.4,1610.1,6.97955935]
[1744744410190,7.05284303,1610.4,1610.1,6.97946729]
[1744744410990,6.22974303,1610.4,1610.1,13.19016184]
[1744744411407,6.22974303,1610.4,1610.1,6.97946729]
[1744744411809,12.43956715,1610.4,1610.1,6.97946729]
[1744744412009,0.02,1610.4,1610.1,13.19013871]
[1744744412223,0.02,1610.4,1610.2,3.61867673]
[1744744412379,0.02,1610.4,1610.3,6.21002297]
[1744744412579,0.02,1610.4,1610.2,16.03919226]
[1744744412775,0.02,1610.4,1610.3,6.21002297]
[1744744415123,0.02,1610.4,1610.3,0.46636636]
[1744744415290,0.02,1610.4,1610.2,3.61867673]
[1744744416413,6.22963757,1610.4,1610.2,3.61867673]
[1744744417602,6.22963757,1610.4,1610.2,9.82907946]
[1744744417936,12.43943517,1610.4,1610.2,3.61867673]
[1744744418158,6.22963757,1610.4,1610.2,3.61867673]
[1744744418436,12.4206172,1610.3,1610.1,5.515]
[1744744418814,6.21025841,1610.3,1610.1,5.515]
[1744744419333,6.21015707,1610.3,1610.1,5.515]
[1744744421153,6.2101487,1610.3,1610.1,5.515]
[1744744422157,12.42032972,1610.3,1610.1,5.515]
[1744744422325,6.2101487,1610.3,1610.1,5.515]
[1744744422656,0.02,1610.4,1610.2,9.82889999]
[1744744422843,0.02,1610.4,1610.3,0.7873]
[1744744423456,0.02,1610.4,1610.3,1.24324954]
[1744744424362,0.02,1610.4,1610.3,7.45327251]
[1744744424655,0.02,1610.4,1610.3,1.24324954]
[1744744427059,6.22963735,1610.4,1610.2,3.61867673]
[1744744427239,6.21002297,1610.3,1610.2,3.61867673]
[1744744427960,7.03113735,1610.4,1610.2,3.61867673]
[1744744428262,6.22963735,1610.4,1610.2,3.61867673]
[1744744429777,12.43943107,1610.4,1610.2,3.61867673]
[1744744429973,6.22963735,1610.4,1610.2,3.61867673]
[1744744431349,0.02,1610.4,1610.2,16.03921311]
[1744744431551,0.02,1610.4,1610.2,9.8289054]
[1744744433481,6.21106794,1610.1,1609.8,6.68653055]
[1744744433659,6.21158696,1609.9,1609.6,4.37567673]
[1744744433863,6.21121465,1610.0,1609.6,10.58828583]
[1744744434071,12.4227179,1610.0,1609.7,3.0]
[1744744434472,6.21121465,1610.0,1609.7,9.21228963]
[1744744434669,12.42258393,1610.0,1609.7,9.21228963]
[1744744435591,12.42253463,1610.0,1609.7,9.21228963]
[1744744435945,12.42351539,1609.9,1609.6,10.5882841]
[1744744436148,6.21195647,1609.8,1609.6,4.37567673]
[1744744436347,6.21195647,1609.8,1609.6,6.61867673]
[1744744436348,6.2123377,1609.7,1609.6,6.61867673]
[1744744436788,12.42409785,1609.8,1609.6,6.61867673]
[1744744437283,12.42409785,1609.8,1609.6,3.61867673]
[1744744437969,12.42405596,1609.8,1609.6,3.61867673]
[1744744438175,6.96203968,1609.9,1609.6,3.61867673]
[1744744438482,6.21173968,1609.9,1609.6,9.83137394]
[1744744438680,6.21172931,1609.9,1609.6,9.83137394]
[1744744438982,13.25552794,1610.0,1609.7,7.02793517]
[1744744439275,6.21156796,1609.9,1609.7,0.8156]
[1744744439680,12.42211757,1610.1,1609.8,3.61867673]
[1744744439856,6.21098827,1610.1,1609.8,3.61867673]
[1744744440044,6.21098827,1610.1,1609.8,9.83043359]
[1744744440449,7.04338962,1610.2,1609.8,3.61867673]
[1744744440645,2.09676818,1610.4,1609.9,0.8156]
[1744744440885,6.21118012,1610.0,1609.8,4.43427673]
[1744744441057,6.21105704,1610.1,1609.8,10.64619049]
[1744744441393,6.21101024,1610.1,1609.8,16.85802094]
[1744744441753,6.21101024,1610.1,1609.8,16.8579551]
[1744744442173,6.21101024,1610.1,1609.8,10.64610718]
[1744744442373,12.4218769,1610.1,1609.8,10.64610718]
[1744744442582,6.21093458,1610.1,1609.8,10.64610718]
[1744744442778,12.42106919,1610.2,1609.9,6.21150174]
[1744744442960,12.42111055,1610.2,1609.9,6.21150174]
[1744744443161,6.21051788,1610.2,1609.9,6.21150174]
[1744744443384,12.42107884,1610.2,1609.9,6.21150174]
[1744744443584,6.21051788,1610.2,1609.9,6.21150174]
[1744744443783,12.42108327,1610.2,1610.0,3.61867673]
[1744744444178,6.21051788,1610.2,1610.0,3.61867673]
[1744744444383,6.21051788,1610.2,1609.9,6.21150174]
[1744744444757,6.21107516,1610.1,1609.7,9.89237673]
[1744744444978,6.21135839,1610.0,1609.7,16.10452313]
[1744744445372,6.9942384,1610.1,1609.8,6.21193229]
[1744744445575,6.9942384,1610.1,1609.8,6.21182938]
[1744744445768,6.9942384,1610.1,1609.8,12.42365848]
[1744744446091,0.7834,1610.1,1609.9,9.83011875]
[1744744446257,6.99421199,1610.1,1609.9,3.61867673]
[1744744446681,6.96890816,1610.2,1609.9,9.83022278]
[1744744447176,6.21002297,1610.3,1609.9,3.61867673]
[1744744447366,6.21205839,1609.8,1609.6,3.0]
[1744744447565,13.18608756,1609.8,1609.6,3.0]
[1744744447805,0.7617,1609.8,1609.4,4.41667673]
[1744744447954,6.21316495,1609.5,1609.3,3.61867673]
[1744744448160,13.18818211,1609.5,1609.1,16.04782901]
[1744744448686,6.21351951,1609.4,1609.1,9.83321803]
[1744744448902,6.21351951,1609.4,1609.1,16.04773367]
[1744744449201,13.18820056,1609.5,1609.2,6.21426183]
[1744744449400,6.97486495,1609.5,1609.2,6.21426183]
[1744744449589,13.18820856,1609.5,1609.2,6.21426183]
[1744744450292,6.99670177,1609.6,1609.3,3.61867673]
[1744744450461,6.99670177,1609.6,1609.3,9.83244269]
[1744744450655,13.20958029,1609.6,1609.3,9.83244269]
[1744744451109,6.21314302,1609.5,1609.3,3.61867673]
[1744744451270,6.99670177,1609.6,1609.3,9.83249661]
[1744744452692,13.20961647,1609.6,1609.3,9.83249661]
[1744744453089,13.20966181,1609.6,1609.3,6.21381988]
[1744744453293,0.7839,1609.6,1609.3,9.83245094]
[1744744453595,6.21272842,1609.6,1609.3,16.83682515]
[1744744453779,6.21242316,1609.7,1609.3,16.83682515]
[1744744453780,6.21242316,1609.7,1609.4,6.21337056]
[1744744454289,12.42494084,1609.7,1609.3,16.83701819]
[1744744454458,12.42512938,1609.7,1609.3,16.8369068]
[1744744454863,12.42495591,1609.7,1609.4,6.21349192]
[1744744455162,6.21242316,1609.7,1609.4,6.21349192]
[1744744455462,12.42502697,1609.7,1609.4,6.21349192]
[1744744455663,7.00936641,1609.8,1609.3,4.40927673]
[1744744455900,13.22165695,1609.8,1609.4,12.42693926]
[1744744456068,14.54382265,1609.8,1609.4,12.42693926]
[1744744456793,6.21237165,1609.7,1609.4,12.42684815]
[1744744457688,6.21237165,1609.7,1609.4,12.42677197]
[1744744457889,6.21237165,1609.7,1609.4,6.21337852]
[1744744458299,6.97362075,1609.6,1609.3,9.83247484]
[1744744458496,0.7607,1609.6,1609.3,9.83244377]
[1744744458673,6.98494603,1609.7,1609.4,6.97888779]
[1744744458876,6.98494603,1609.7,1609.4,6.97878312]
[1744744459204,6.98494603,1609.7,1609.4,13.19214279]
[1744744459205,6.21244603,1609.7,1609.4,13.19214279]
[1744744459400,8.30663863,1609.8,1609.5,6.21300521]
[1744744459899,14.51876718,1609.8,1609.5,6.21300521]
[1744744460100,6.21237778,1609.7,1609.4,6.97875967]
[1744744460511,6.21237778,1609.7,1609.4,13.1921458]
[1744744460665,6.21237778,1609.7,1609.4,6.97875967]
[1744744460871,6.21237778,1609.7,1609.4,13.19214708]
[1744744461720,5.509,1610.1,1609.5,3.61867673]
[1744744461867,7.01264236,1610.0,1609.6,6.21272365]
[1744744462272,13.22405814,1610.0,1609.6,6.21253894]
[1744744462573,6.21166786,1609.9,1609.6,6.21253894]
[1744744462775,12.42336211,1609.9,1609.6,6.21253894]
[1744744463120,6.21166786,1609.9,1609.7,6.21232262]
[1744744463275,12.42339814,1609.9,1609.6,6.21253894]
[1744744463706,6.21166786,1609.9,1609.6,12.42514743]
[1744744464205,7.01265909,1610.0,1609.7,6.21229387]
[1744744464506,0.8014,1610.0,1609.7,10.6550706]
[1744744464702,0.8014,1610.0,1609.8,6.21184439]
[1744744464903,0.8014,1610.0,1609.7,16.86729475]
[1744744465692,7.01265952,1610.0,1609.7,10.65500088]
[1744744466007,7.01265952,1610.0,1609.7,16.86722503]
[1744744466222,0.8155,1610.2,1610.0,6.21115343]
[1744744466411,7.0259394,1610.2,1609.9,9.83011693]
[1744744466607,7.0259394,1610.2,1609.9,16.04155584]
[1744744466914,7.02590876,1610.2,1609.9,16.04160315]
[1744744467086,0.8155,1610.2,1610.0,6.21114157]
[1744744467287,0.8155,1610.2,1609.9,16.04160109]
[1744744467491,13.23664641,1610.2,1609.9,9.83013891]
[1744744468424,7.02603328,1610.2,1609.9,16.04159568]
[1744744468804,7.02603328,1610.2,1609.9,16.04158487]
[1744744469111,13.23658245,1610.2,1609.9,9.8301281]
[1744744469838,2.04666818,1610.4,1610.0,0.7516]
[1744744470109,6.21011961,1610.3,1610.0,6.96268151]
[1744744470317,6.21011961,1610.3,1610.0,13.17375697]
[1744744470613,14.46630914,1610.4,1610.1,6.21074525]
[1744744470777,8.25631221,1610.4,1610.0,6.96267546]
[1744744470982,14.46610603,1610.4,1610.1,6.21068834]
[1744744471540,8.25631221,1610.4,1610.1,6.21068834]
[1744744471812,7.01244403,1610.4,1610.1,12.4213592]
[1744744472007,7.01244403,1610.4,1610.1,12.42134172]
[1744744472483,0.8028,1610.4,1610.2,6.21021228]
[1744744472811,0.8028,1610.4,1610.1,9.82946382]
[1744744473018,0.02,1610.4,1610.2,6.21030077]
[1744744473528,0.02,1610.4,1610.3,10.6120997]
[1744744476830,0.02,1610.4,1610.3,11.0693543]
[1744744477208,0.02,1610.4,1610.3,10.2859543]
[1744744482512,0.02,1610.4,1610.2,6.21021558]
[1744744482710,0.02,1610.4,1610.2,12.42051333]
[1744744483338,0.02,1610.4,1610.3,6.21002297]
[1744744485842,0.02,1610.4,1610.3,14.68101897]
[1744744486150,0.02,1610.4,1610.3,14.6189206]
[1744744486444,7.00351278,1610.4,1610.0,6.21111539]
[1744744486609,4.10837573,1611.4,1610.3,0.8017]
[1744744486812,0.7619,1611.3,1611.0,3.61867673]
[1744744487111,0.7619,1611.3,1611.0,9.82588166]
[1744744487329,0.7619,1611.3,1611.0,16.03308636]
[1744744487517,0.7619,1611.3,1611.1,6.20691496]
[1744744487711,0.7619,1611.3,1611.0,16.03308613]
[1744744487914,4.10837573,1611.4,1611.2,3.61867673]
[1744744488118,4.10837573,1611.4,1611.3,6.20616893]
[1744744488940,4.10837573,1611.4,1611.2,9.82504694]
[1744744489547,4.10837573,1611.4,1611.2,16.03149508]
[1744744489750,4.10837573,1611.4,1611.2,9.82504694]
[1744744490329,4.10837573,1611.4,1611.3,7.55786893]
[1744744490524,0.05,1611.4,1611.3,7.55786893]
[1744744491946,0.05,1611.4,1611.3,7.61992025]
[1744744492828,0.05,1611.4,1611.3,7.55786893]
[1744744493027,0.05,1611.4,1611.3,7.00786893]
[1744744493429,0.05,1611.4,1611.3,7.06992216]
[1744744495045,0.05,1611.4,1611.3,7.00786893]
[1744744495746,0.05,1611.4,1611.3,7.06992215]
[1744744496830,0.05,1611.4,1611.3,7.00786893]
[1744744497329,0.05,1611.4,1611.3,7.06992213]
[1744744497555,0.05,1611.4,1611.3,0.8637532]
[1744744497758,0.05,1611.4,1611.3,7.06992213]
[1744744499360,0.05,1611.4,1611.2,9.59806163]
[1744744499547,0.05,1611.4,1611.2,4.09406163]
[1744744499751,6.25588898,1611.4,1611.2,4.09406163]
[1744744500063,6.20616893,1611.3,1611.2,4.09406163]
[1744744500252,7.03656893,1611.3,1611.2,4.09406163]
[1744744501133,6.20655412,1611.2,1611.1,3.61867673]
[1744744501334,0.8304,1611.3,1611.1,3.61867673]
[1744744501534,7.03668912,1611.3,1611.1,3.61867673]
[1744744501734,6.20655412,1611.2,1611.1,3.61867673]
[1744744501967,6.20791992,1610.9,1610.8,3.61867673]
[1744744502165,6.20791992,1610.9,1610.7,3.61867673]
[1744744502462,6.20809535,1610.8,1610.7,3.61867673]
[1744744502630,6.20791992,1610.9,1610.7,3.61867673]
[1744744502631,6.2078868,1610.9,1610.7,3.61867673]
[1744744502838,12.4150131,1611.0,1610.7,9.82715334]
[1744744503065,12.4150131,1611.0,1610.7,3.61867673]
[1744744503265,0.8056,1611.1,1610.9,3.61867673]
[1744744503467,6.2067235,1611.2,1610.9,9.82616475]
[1744744503764,12.41347368,1611.2,1611.1,3.61867673]
[1744744504135,6.99722464,1611.0,1610.9,3.61867673]
[1744744505077,6.20848078,1610.7,1610.6,3.61867673]
[1744744507976,6.20777972,1610.9,1610.7,3.61867673]
[1744744509496,12.41493713,1611.0,1610.7,3.61867673]
[1744744509698,6.20776559,1610.9,1610.7,3.61867673]
[1744744510678,0.764,1610.8,1610.5,0.4645548]
[1744744510983,6.20925774,1610.5,1610.3,4.41277673]
[1744744511182,6.20848078,1610.7,1610.3,3.61867673]
[1744744511388,12.41913239,1610.5,1610.3,3.61867673]
[1744744511572,12.41905751,1610.5,1610.3,3.61867673]
[1744744511773,6.20952158,1610.5,1610.3,3.61867673]
[1744744511997,6.97221659,1610.8,1610.5,6.20910847]
[1744744512298,13.18053396,1610.8,1610.5,9.8277852]
[1744744512883,13.18053396,1610.8,1610.5,3.61867673]
[1744744513085,6.20849357,1610.7,1610.5,3.61867673]
[1744744513390,6.20849357,1610.7,1610.5,4.08164888]
[1744744514098,6.20698594,1611.1,1610.5,4.08164888]
[1744744514099,7.02725179,1611.2,1610.8,6.20780846]
[1744744514275,7.02725179,1611.2,1610.9,3.61867673]
[1744744514669,7.0272427,1611.2,1610.9,4.11867673]
[1744744514864,6.20704834,1611.1,1610.9,4.11867673]
[1744744515069,6.20704834,1611.1,1610.9,0.5]
[1744744515499,13.93658759,1611.2,1610.9,0.5]
[1744744515700,12.41404145,1611.1,1610.9,0.5]
[1744744515881,6.20694624,1611.1,1610.9,0.5]
[1744744516670,12.41411038,1611.1,1610.9,0.5]
[1744744516901,6.20694624,1611.1,1610.9,0.5]
[1744744517086,13.93661394,1611.2,1610.9,0.5]
[1744744517293,7.72984832,1611.2,1610.9,6.70769517]
[1744744517805,6.20702292,1611.1,1610.9,0.5]
[1744744518604,7.02782464,1611.0,1610.9,0.5]
[1744744519697,6.95282464,1611.0,1610.9,0.5]
[1744744519910,12.45482464,1611.0,1610.9,0.5]
[1744744520610,6.20819093,1610.8,1610.4,9.82819073]
[1744744520913,6.20882719,1610.7,1610.4,3.61867673]
[1744744521620,12.41768978,1610.7,1610.4,3.61867673]
[1744744521779,1.24176898,1610.7,1610.4,3.61867673]
[1744744521984,6.2093617,1610.5,1610.2,9.82890332]
[1744744522210,12.41889196,1610.5,1610.2,3.61867673]
[1744744522514,6.2093617,1610.5,1610.2,9.82904635]
[1744744522722,6.2093617,1610.5,1610.2,10.2868527]
[1744744522885,6.2093617,1610.5,1610.2,16.49715867]
[1744744523084,7.02941781,1610.6,1610.3,6.20997465]
[1744744524617,7.02941781,1610.6,1610.3,6.20989831]
[1744744524818,7.02941781,1610.6,1610.4,0.5]
[1744744525321,8.35321622,1610.6,1610.4,0.5]
[1744744525481,14.56232783,1610.6,1610.4,0.5]
[1744744525689,8.35321622,1610.6,1610.4,0.5]
[1744744526017,14.55385391,1610.6,1610.4,0.5]
[1744744526185,6.20925178,1610.5,1610.4,0.5]
[1744744526385,8.28556411,1610.5,1610.4,0.5]
[1744744526893,8.28556411,1610.5,1610.2,10.28666763]
[1744744527107,6.20925178,1610.5,1610.2,10.28666763]
[1744744527420,6.20925178,1610.5,1610.2,16.49696937]
[1744744527623,6.20925178,1610.5,1610.2,16.49695059]
[1744744528826,7.0294395,1610.6,1610.3,6.20998973]
[1744744529121,6.20858173,1610.7,1610.4,6.20953415]
[1744744529431,13.74164506,1610.7,1610.4,6.20953298]
[1744744529798,13.74161635,1610.7,1610.4,6.20953298]
[1744744530441,6.20887201,1610.6,1610.4,6.20953298]
[1744744530722,7.53297124,1610.7,1610.4,6.20952108]
[1744744531222,13.74165107,1610.7,1610.4,7.03032108]
[1744744532222,13.74175959,1610.7,1610.4,7.03032108]
[1744744533029,6.2089056,1610.6,1610.4,0.8208]
[1744744533225,6.2089056,1610.6,1610.2,11.10757023]
[1744744533425,6.96185178,1610.5,1610.2,4.07648308]
[1744744533731,6.96185178,1610.5,1610.2,10.28686549]
[1744744534297,6.96185178,1610.5,1610.2,16.49705853]
[1744744534627,0.7526,1610.5,1610.3,6.20994122]
[1744744537224,0.7526,1610.5,1610.3,6.20992427]
[1744744537429,6.20899134,1610.6,1610.3,6.20989512]
[1744744537633,6.20899134,1610.6,1610.3,12.41980184]
[1744744537938,6.20899134,1610.6,1610.3,12.41981116]
[1744744538230,6.20899134,1610.6,1610.3,6.20989512]
[1744744538538,6.20899134,1610.6,1610.3,12.41979902]
[1744744538837,6.20899134,1610.6,1610.3,12.41980604]
[1744744539525,7.02929194,1610.8,1610.2,4.07648308]
[1744744539837,6.2101363,1610.3,1610.0,12.82973697]
[1744744540003,13.23269222,1610.4,1610.1,6.21078338]
[1744744540204,7.022735,1610.4,1610.1,6.21078338]
[1744744540431,7.02266411,1610.4,1610.1,12.42147138]
[1744744540739,18.73486318,1610.6,1610.3,7.02104326]
[1744744541038,20.6083495,1610.6,1610.3,7.02104326]
[1744744541338,14.39925988,1610.6,1610.3,13.23096096]
[1744744541512,20.60826552,1610.6,1610.3,7.02104326]
[1744744541834,58.70041921,1611.2,1610.3,0.8113]
[1744744541835,0.7969,1610.7,1610.3,0.8113]
[1744744542147,6.20888438,1610.6,1610.3,7.02115159]
[1744744542432,12.41791707,1610.6,1610.3,7.02115159]
[1744744542638,12.41794314,1610.6,1610.3,7.02115159]
[1744744542934,13.214277,1610.7,1610.3,7.02115159]
[1744744543138,6.20888077,1610.6,1610.3,7.02115159]
[1744744544134,6.20888077,1610.6,1610.3,13.23105424]
[1744744544333,6.20888077,1610.6,1610.3,7.02115159]
[1744744544634,12.41788767,1610.6,1610.3,7.02115159]
[1744744544838,6.20888077,1610.6,1610.3,7.02115159]
[1744744545237,12.41793068,1610.6,1610.3,7.02115159]
[1744744545442,6.20928081,1610.5,1610.3,0.8113]
[1744744546044,12.41799156,1610.6,1610.3,7.02120454]
[1744744546709,6.20897391,1610.6,1610.3,13.23112929]
[1744744547135,6.20897391,1610.6,1610.3,7.02120454]
[1744744547345,12.41804127,1610.6,1610.3,7.02120454]
[1744744547527,6.20928848,1610.5,1610.2,10.28568568]
[1744744547838,6.20928848,1610.5,1610.2,16.49599648]
[1744744549757,6.20893917,1610.6,1610.3,6.20982365]
[1744744550759,6.20893917,1610.6,1610.3,12.41973528]
[1744744551550,6.20893917,1610.6,1610.4,6.209632]
[1744744551743,18.71814285,1610.7,1610.4,6.209632]
[1744744552656,6.20888981,1610.6,1610.3,13.18023528]
[1744744553153,6.20888981,1610.6,1610.3,6.97032365]
[1744744553644,12.4180189,1610.6,1610.3,6.97032365]
[1744744554119,6.20888981,1610.6,1610.3,7.03241862]
[1744744554550,12.41791245,1610.6,1610.3,7.03241862]
[1744744554862,6.20888981,1610.6,1610.3,6.97032365]
[1744744555026,12.41791561,1610.6,1610.3,0.7605]
[1744744557654,6.20888981,1610.6,1610.3,7.03239822]
[1744744558151,6.20888981,1610.6,1610.3,6.97030325]